fUSD/lending_fUSD_20241125
["ID","MTS","AMOUNT","RATE_DAILY","PERIOD"]
[343251828,1732532718267,-151.0,0.00040993,14]
[343251829,1732532718313,-500.0,0.00040993,21]
[343251830,1732532718364,-187.920389,0.00040993,14]
[343251831,1732532718407,-500.0,0.00040993,21]
[343251832,1732532718456,-500.0,0.00040993,21]
[343251833,1732532718503,-151.0,0.00040993,14]
[343251834,1732532718552,-500.0,0.00040993,21]
[343251835,1732532718599,-185.070457,0.00040993,14]
[343251836,1732532718646,-185.070457,0.00040993,14]
[343251837,1732532718692,-151.0,0.00040993,14]
[343251838,1732532718739,-500.0,0.00040993,21]
[343251839,1732532718784,-151.0,0.00040993,14]
[343251840,1732532718835,-151.0,0.00040993,14]
[343251841,1732532718879,-500.0,0.00040993,21]
[343251842,1732532718927,-398.458523,0.00040993,14]
[343251843,1732532718979,-398.458523,0.00040993,14]
[343251844,1732532719026,-652.27,0.00040993,21]
[343251845,1732532719071,-594.537871,0.00040993,7]
[343251846,1732532719126,-594.537871,0.00040993,7]
[343251847,1732532719371,-833.792001,0.00040993,14]
[343251848,1732532719420,-846.74,0.00040993,21]
[343251849,1732532719451,-349.15862717,0.00040993,21]
[343251850,1732532719485,-500.0,0.00040993,21]
[343251851,1732532719513,-151.0,0.00040993,14]
[343251852,1732532719543,-500.0,0.00040993,21]
[343251853,1732532719574,-159.109585,0.00040993,14]
[343251854,1732532719604,-159.109585,0.00040993,14]
[343251855,1732532719641,-500.0,0.00040993,21]
[343251856,1732532719671,-500.0,0.00040993,21]
[343251857,1732532719701,-500.0,0.00040993,21]
[343251858,1732532719735,-500.0,0.00040993,120]
[343251859,1732532719763,-500.0,0.00040993,21]
[343251860,1732532719790,-500.0,0.00040993,21]
[343251861,1732532719818,-500.0,0.00040993,21]
[343251862,1732532719846,-459.381304,0.00040993,14]
[343251863,1732532719873,-500.0,0.00040993,21]
[343251864,1732532719901,-459.381304,0.00040993,14]
[343251865,1732532719930,-9562.63768,0.00040993,14]
[343251866,1732532719957,-151.0,0.00040993,7]
[343251867,1732532719989,-9562.63768,0.00040993,14]
[343251868,1732532720019,-151.0,0.00040993,14]
[343251869,1732532720050,-151.0,0.00040993,14]
[343251870,1732532720084,-151.0,0.00040993,14]
[343251871,1732532720113,-161.112775,0.00040993,14]
[343251872,1732532720144,-161.112775,0.00040993,14]
[343251873,1732532720176,-271.229146,0.00040993,14]
[343251874,1732532720206,-1250.960024,0.00040993,14]
[343251875,1732532720236,-1250.960024,0.00040993,14]
[343251876,1732532720266,-687.476365,0.00040993,14]
[343251877,1732532720296,-687.476365,0.00040993,14]
[343251878,1732532720325,-168.601148,0.00040993,14]
[343251879,1732532720353,-168.601148,0.00040993,14]
[343251880,1732532720385,-150.0,0.00040993,2]
[343251881,1732532720414,-581.901616,0.00040993,14]
[343251882,1732532720443,-581.901612,0.00040993,14]
[343251883,1732532720475,-500.0,0.00040994,2]
[343251884,1732532720506,-525.11925976,0.00040995,21]
[343251885,1732532720535,-500.0,0.00040995,21]
[343251886,1732532720564,-500.9436287,0.00040995,21]
[343251887,1732532720595,-151.0,0.00040995,14]
[343251888,1732532720624,-500.0,0.00040995,21]
[343251889,1732532720651,-500.0,0.00040995,21]
[343251890,1732532720679,-1149.65,0.00040995,21]
[343251891,1732532720706,-334.86831746,0.00040995,21]
[343251892,1732532720735,-500.0,0.00040995,21]
[343251893,1732532720764,-500.0,0.00040995,21]
[343251894,1732532720792,-151.0,0.00040995,14]
[343251895,1732532720819,-500.0,0.00040995,21]
[343251896,1732532720848,-643.4560443,0.00040995,21]
[343251897,1732532720889,-500.0,0.00040995,21]
[343251898,1732532720922,-500.0,0.00040995,21]
[343251899,1732532720952,-150.0,0.00040995,21]
[343251900,1732532720982,-808.32,0.00040995,21]
[343251901,1732532721012,-151.0,0.00040995,14]
[343251902,1732532721045,-500.0,0.00040995,21]
[343251903,1732532721079,-151.0,0.00040995,14]
[343251904,1732532721110,-301.100516,0.00040995,14]
[343251905,1732532721140,-500.0,0.00040995,21]
[343251906,1732532721170,-234.052,0.00040995,7]
[343251907,1732532721199,-500.0,0.00040995,21]
[343251908,1732532721229,-234.052,0.00040995,7]
[343251909,1732532721259,-500.0,0.00040995,21]
[343251910,1732532721288,-500.0,0.00040995,21]
[343251911,1732532721317,-500.0,0.00040995,21]
[343251912,1732532721347,-500.0,0.00040995,21]
[343251913,1732532721376,-500.0,0.00040995,21]
[343251914,1732532721404,-505.81716876,0.00040995,21]
[343251915,1732532721433,-500.0,0.00040995,21]
[343251916,1732532721463,-500.0,0.00040995,21]
[343251917,1732532721495,-500.0,0.00040995,21]
[343251918,1732532721524,-507.06716505,0.00040995,21]
[343251919,1732532721555,-508.5522063,0.00040995,21]
[343251920,1732532721587,-500.0,0.00040995,21]
[343251921,1732532721618,-510.87261674,0.00040995,21]
[343251922,1732532721649,-500.0,0.00040995,21]
[343251923,1732532721680,-500.0,0.00040995,21]
[343251924,1732532721711,-500.0,0.00040995,21]
[343251925,1732532721744,-500.0,0.00040995,21]
[343251926,1732532721772,-508.87115822,0.00040995,21]
[343251927,1732532721799,-500.0,0.00040995,21]
[343251928,1732532721827,-490.49503975,0.00040995,21]
[343251929,1732532721856,-500.0,0.00040995,21]
[343251930,1732532721884,-371.43185721,0.00040995,21]
[343251931,1732532721911,-500.0,0.00040995,21]
[343251932,1732532721939,-500.0,0.00040995,21]
[343251933,1732532721966,-500.0,0.00040995,21]
[343251934,1732532721999,-821.63,0.00040995,21]
[343251935,1732532722028,-500.0,0.00040995,21]
[343251936,1732532722057,-151.0,0.00040995,14]
[343251937,1732532722089,-151.0,0.00040995,14]
[343251938,1732532722118,-151.0,0.00040995,14]
[343251939,1732532722147,-151.0,0.00040995,14]
[343251940,1732532722179,-151.0,0.00040995,14]
[343251941,1732532722209,-151.0,0.00040995,14]
[343251942,1732532722238,-151.0,0.00040995,14]
[343251943,1732532722268,-151.0,0.00040995,14]
[343251944,1732532722464,-151.0,0.00040995,14]
[343251945,1732532722504,-151.0,0.00040995,14]
[343251946,1732532722536,-151.0,0.00040995,14]
[343251947,1732532722566,-185.070457,0.00040995,14]
[343251948,1732532722595,-185.070457,0.00040995,14]
[343251949,1732532722625,-151.0,0.00040995,14]
[343251950,1732532722655,-151.0,0.00040995,14]
[343251951,1732532722686,-398.458523,0.00040995,14]
[343251952,1732532722719,-398.458523,0.00040995,14]
[343251953,1732532722753,-594.537871,0.00040995,7]
[343251954,1732532722784,-594.537871,0.00040995,7]
[343251955,1732532722815,-833.792001,0.00040995,14]
[343251956,1732532722845,-600.33,0.00040995,21]
[343251957,1732532722874,-151.0,0.00040996,14]
[343251958,1732532722903,-500.0,0.00040996,21]
[343251959,1732532722932,-500.0,0.00040996,21]
[343251960,1732532722962,-500.0,0.00040996,21]
[343251961,1732532722994,-437.55427196,0.00040996,21]
[343251962,1732532723026,-500.0,0.00040996,21]
[343251963,1732532723056,-500.0,0.00040996,21]
[343251964,1732532723088,-203.897358,0.00040996,14]
[343251965,1732532723121,-151.0,0.00040996,14]
[343251966,1732532723154,-151.0,0.00040996,14]
[343251967,1732532723184,-234.052,0.00040996,7]
[343251968,1732532723215,-234.052,0.00040996,7]
[343251969,1732532723247,-151.0,0.00040996,14]
[343251970,1732532723278,-151.0,0.00040996,14]
[343251971,1732532723307,-151.0,0.00040996,3]
[343251972,1732532723340,-151.0,0.00040996,14]
[343251973,1732532723375,-151.0,0.00040996,14]
[343251974,1732532723406,-151.0,0.00040996,14]
[343251975,1732532723437,-163.758365,0.00040996,14]
[343251976,1732532723466,-151.0,0.00040996,14]
[343251977,1732532723499,-152.225277,0.00040996,14]
[343251978,1732532723538,-152.225277,0.00040996,14]
[343251979,1732532723571,-151.0,0.00040996,14]
[343251980,1732532723600,-151.0,0.00040996,14]
[343251981,1732532723630,-151.0,0.00040996,14]
[343251982,1732532723659,-151.0,0.00040996,14]
[343251983,1732532723687,-152.060039,0.00040996,14]
[343251984,1732532723715,-151.0,0.00040996,14]
[343251985,1732532723746,-151.0,0.00040996,14]
[343251986,1732532723775,-151.0,0.00040996,14]
[343251987,1732532723803,-151.0,0.00040996,14]
[343251988,1732532723832,-151.0,0.00040996,14]
[343251989,1732532723859,-151.0,0.00040996,14]
[343251990,1732532723886,-151.0,0.00040996,14]
[343251991,1732532723915,-151.0,0.00040996,14]
[343251992,1732532723945,-151.0,0.00040996,14]
[343251993,1732532723977,-197.215074,0.00040996,14]
[343251994,1732532724007,-151.0,0.00040996,14]
[343251995,1732532724036,-155.508158,0.00040996,14]
[343251996,1732532724065,-200.080119,0.00040996,14]
[343251997,1732532724096,-159.109585,0.00040996,14]
[343251998,1732532724125,-159.109585,0.00040996,14]
[343251999,1732532724155,-459.381304,0.00040996,14]
[343252000,1732532724188,-459.381304,0.00040996,14]
[343252001,1732532724217,-9562.63768,0.00040996,14]
[343252002,1732532724249,-151.0,0.00040996,7]
[343252003,1732532724278,-9562.63768,0.00040996,14]
[343252004,1732532724307,-151.0,0.00040996,14]
[343252005,1732532724334,-162.79558,0.00040996,14]
[343252006,1732532724364,-151.0,0.00040996,14]
[343252007,1732532724395,-161.112775,0.00040996,14]
[343252008,1732532724426,-161.112775,0.00040996,14]
[343252009,1732532724458,-1250.960024,0.00040996,14]
[343252010,1732532724491,-1250.960024,0.00040996,14]
[343252011,1732532724524,-687.476365,0.00040996,14]
[343252012,1732532724553,-687.476362,0.00040996,14]
[343252013,1732532724582,-168.601148,0.00040996,14]
[343252014,1732532724610,-168.601155,0.00040996,14]
[343252015,1732532724640,-25991.56839471,0.00040998,2]
[343252016,1732532724667,-200.0,0.00040998,7]
[343252017,1732532724695,-500.0,0.00040999,2]
[343252018,1732532724723,-500.0,0.00040999,7]
[343252019,1732532724752,-600.33,0.00040999,21]
[343252020,1732532724781,-600.33,0.00040999,21]
[343252021,1732532724808,-600.33,0.00040999,21]
[343252022,1732532724835,-600.33,0.00040999,21]
[343252023,1732532724862,-600.33,0.00040999,21]
[343252024,1732532724890,-600.33,0.00040999,21]
[343252025,1732532724917,-600.33,0.00040999,21]
[343252026,1732532724945,-600.33,0.00040999,21]
[343252027,1732532724975,-600.33,0.00040999,21]
[343252028,1732532725006,-600.33,0.00040999,21]
[343252029,1732532725037,-600.33,0.00040999,21]
[343252030,1732532725068,-600.33,0.00040999,21]
[343252031,1732532725098,-2832.62438969,0.00041,12]
[343252032,1732532725127,-184825.25833841,0.00041,2]
[343252033,1732532725158,-294572.1326276,0.00041,2]
[343252034,1732532725189,-698.0,0.00041,12]
[343252035,1732532725219,-1000.0,0.00041,12]
[343252036,1732532725251,-1200.0,0.00041,12]
[343252037,1732532725281,-1000.0,0.00041,3]
[343252038,1732532725310,-1000.0,0.00041,19]
[343252039,1732532725346,-1000.0,0.00041,7]
[343252040,1732532725374,-1000.0,0.00041,7]
[343252041,1732532725402,-190016.94431128,0.00041,2]
[343252042,1732532725584,-8234.3112064,0.00041,30]
[343252043,1732532725610,-151.0,0.00041,14]
[343252044,1732532725636,-151.0,0.00041,14]
[343252045,1732532725665,-151.0,0.00041,14]
[343252046,1732532725695,-151.0,0.00041,14]
[343252047,1732532725723,-151.0,0.00041,14]
[343252048,1732532725750,-151.0,0.00041,14]
[343252049,1732532725777,-151.0,0.00041,14]
[343252050,1732532725804,-234.052,0.00041,7]
[343252051,1732532725831,-234.052,0.00041,7]
[343252052,1732532725858,-500.0,0.00041,2]
[343252053,1732532725886,-152.6151,0.00041,14]
[343252054,1732532725913,-151.0,0.00041,14]
[343252055,1732532725940,-241.387813,0.00041,3]
[343252057,1732532725969,-151.0,0.00041,14]
[343252058,1732532726005,-151.0,0.00041,14]
[343252059,1732532726034,-151.0,0.00041,14]
[343252060,1732532726066,-151.0,0.00041,14]
[343252061,1732532726098,-152.225277,0.00041,14]
[343252062,1732532726126,-152.225277,0.00041,14]
[343252063,1732532726156,-151.0,0.00041,14]
[343252064,1732532726187,-151.0,0.00041,14]
[343252065,1732532726215,-151.0,0.00041,14]
[343252066,1732532726284,-151.0,0.00041,14]
[343252067,1732532726345,-151.0,0.00041,14]
[343252068,1732532726408,-151.0,0.00041,14]
[343252069,1732532726469,-151.0,0.00041,14]
[343252070,1732532726537,-151.0,0.00041,14]
[343252072,1732532726599,-192.332016,0.00041,14]
[343252073,1732532726661,-151.0,0.00041,14]
[343252074,1732532726722,-151.0,0.00041,14]
[343252075,1732532726784,-271.801262,0.00041,14]
[343252076,1732532726843,-151.0,0.00041,14]
[343252077,1732532726902,-151.0,0.00041,14]
[343252078,1732532726962,-151.0,0.00041,14]
[343252079,1732532727030,-151.0,0.00041,14]
[343252081,1732532727096,-152.31499,0.00041,14]
[343252082,1732532727157,-151.0,0.00041,14]
[343252083,1732532727223,-151.0,0.00041,14]
[343252084,1732532727283,-151.0,0.00041,14]
[343252085,1732532727342,-151.0,0.00041,14]
[343252086,1732532727400,-151.0,0.00041,14]
[343252087,1732532727458,-177.691499,0.00041,14]
[343252088,1732532727524,-151.0,0.00041,14]
[343252089,1732532727586,-151.0,0.00041,14]
[343252091,1732532727646,-185.070457,0.00041,14]
[343252092,1732532727708,-185.070457,0.00041,14]
[343252093,1732532727769,-185.070457,0.00041,14]
[343252094,1732532727830,-185.070457,0.00041,14]
[343252095,1732532727894,-151.0,0.00041,14]
[343252096,1732532727960,-151.0,0.00041,14]
[343252097,1732532728027,-151.0,0.00041,14]
[343252098,1732532728094,-176.530431,0.00041,14]
[343252099,1732532728162,-398.458523,0.00041,14]
[343252101,1732532728236,-398.458523,0.00041,14]
[343252102,1732532728304,-398.458523,0.00041,14]
[343252103,1732532728369,-398.458523,0.00041,14]
[343252104,1732532728433,-594.537871,0.00041,7]
[343252105,1732532728496,-594.537871,0.00041,7]
[343252106,1732532728564,-594.537871,0.00041,7]
[343252107,1732532728635,-594.537871,0.00041,7]
[343252108,1732532728703,-833.792001,0.00041,14]
[343252110,1732532728768,-833.792001,0.00041,14]
[343252111,1732532728832,-833.792001,0.00041,14]
[343252112,1732532728898,-833.792001,0.00041,14]
[343252113,1732532728963,-159.109585,0.00041,14]
[343252114,1732532729028,-159.109585,0.00041,14]
[343252115,1732532729096,-459.381304,0.00041,14]
[343252116,1732532729165,-459.381304,0.00041,14]
[343252117,1732532729232,-9562.63768,0.00041,14]
[343252118,1732532729292,-151.0,0.00041,7]
[343252119,1732532729356,-9562.63768,0.00041,14]
[343252120,1732532729421,-151.0,0.00041,14]
[343252122,1732532729486,-191.269594,0.00041,14]
[343252123,1732532729552,-161.112775,0.00041,14]
[343252124,1732532729615,-161.112775,0.00041,14]
[343252125,1732532729681,-1250.960024,0.00041,14]
[343252126,1732532729745,-1250.960022,0.00041,14]
[343252127,1732532729808,-150.0,0.00041008,2]
[343252128,1732532729870,-204.0,0.0004102,2]
[343252130,1732532729936,-500.0,0.00041045,21]
[343252131,1732532730002,-746.0,0.00041045,21]
[343252132,1732532730069,-3255.95,0.00041045,21]
[343252133,1732532730138,-456.65,0.00041078,2]
[343252134,1732532730217,-150.0,0.0004109,2]
[343252135,1732532730291,-500.0,0.00041093,2]
[343252136,1732532730359,-6242.43590503,0.00041094,30]
[343252137,1732532730422,-150.01,0.00041094,2]
[343252139,1732532730484,-2304.676256,0.00041094,2]
[343252140,1732532730547,-398.458523,0.00041094,14]
[343252141,1732532730610,-398.458523,0.00041094,14]
[343252142,1732532730668,-594.537871,0.00041094,7]
[343252143,1732532730730,-594.537871,0.00041094,7]
[343252144,1732532730790,-1224.61,0.00041094,21]
[343252146,1732532731067,-500.0,0.00041094,21]
[343252147,1732532731141,-500.0,0.00041094,21]
[343252148,1732532731212,-159.109585,0.00041094,14]
[343252149,1732532731286,-500.0,0.00041094,21]
[343252150,1732532731358,-159.109585,0.00041094,14]
[343252151,1732532731428,-500.0,0.00041094,21]
[343252152,1732532731495,-1154.27,0.00041094,21]
[343252154,1732532731558,-924.22,0.00041094,21]
[343252155,1732532731623,-696.89,0.00041094,21]
[343252156,1732532731687,-3150.76,0.00041094,21]
[343252157,1732532731746,-459.381304,0.00041094,14]
[343252158,1732532731810,-459.381295,0.00041094,14]
[343252159,1732532731873,-9504.79,0.00041094,21]
[343252160,1732532731934,-9562.63768,0.00041094,14]
[343252161,1732532731994,-151.0,0.00041094,7]
[343252162,1732532732055,-9562.63767,0.00041094,14]
[343252164,1732532732125,-7938.89,0.00041094,21]
[343252165,1732532732198,-1024.94,0.00041094,21]
[343252166,1732532732269,-151.0,0.00041094,14]
[343252167,1732532732328,-500.0,0.00041094,21]
[343252168,1732532732395,-3978.3,0.00041094,21]
[343252169,1732532732460,-500.0,0.00041094,21]
[343252170,1732532732520,-161.112775,0.00041094,14]
[343252171,1732532732582,-1146.63,0.00041094,21]
[343252172,1732532732643,-161.11277,0.00041094,14]
[343252174,1732532732701,-1748.64,0.00041094,21]
[343252175,1732532732762,-5468.25,0.00041094,21]
[343252176,1732532732822,-708.11,0.00041094,21]
[343252177,1732532732882,-500.0,0.00041094,21]
[343252178,1732532732941,-500.0,0.00041094,21]
[343252179,1732532733008,-1409.15,0.00041094,21]
[343252180,1732532733081,-758.58,0.00041094,21]
[343252181,1732532733155,-5734.8,0.00041094,21]
[343252182,1732532733232,-677.5,0.00041094,21]
[343252184,1732532733303,-580.49,0.00041094,21]
[343252185,1732532733364,-1167.03,0.00041094,21]
[343252186,1732532733428,-1719.67,0.00041094,21]
[343252187,1732532733491,-500.0,0.00041094,21]
[343252188,1732532733551,-3582.8,0.00041094,21]
[343252189,1732532733614,-500.0,0.00041094,21]
[343252190,1732532733686,-500.0,0.00041094,21]
[343252191,1732532733754,-632.38528036,0.00041095,30]
[343252193,1732532733820,-500.0,0.00041095,21]
[343252194,1732532733884,-151.0,0.00041095,14]
[343252195,1732532733951,-201.732248,0.00041095,14]
[343252196,1732532734037,-151.0,0.00041095,14]
[343252197,1732532734111,-151.0,0.00041095,14]
[343252198,1732532734182,-151.0,0.00041095,14]
[343252199,1732532734248,-151.0,0.00041095,14]
[343252200,1732532734314,-185.070457,0.00041095,14]
[343252202,1732532734377,-185.070457,0.00041095,14]
[343252203,1732532734444,-151.0,0.00041095,14]
[343252204,1732532734512,-1000.0,0.00041095,2]
[343252205,1732532734579,-1000.0,0.00041095,2]
[343252206,1732532734654,-500.0,0.00041095,60]
[343252207,1732532734725,-1000.0,0.00041095,2]
[343252208,1732532734803,-1000.0,0.00041095,2]
[343252209,1732532734870,-1000.0,0.00041095,2]
[343252211,1732532734940,-1000.0,0.00041095,2]
[343252212,1732532735007,-1000.0,0.00041095,2]
[343252213,1732532735078,-1000.0,0.00041095,2]
[343252214,1732532735151,-1000.0,0.00041095,2]
[343252215,1732532735223,-1000.0,0.00041095,2]
[343252216,1732532735292,-1000.0,0.00041095,2]
[343252217,1732532735358,-1000.0,0.00041095,2]
[343252218,1732532735421,-1000.0,0.00041095,2]
[343252220,1732532735488,-1000.0,0.00041095,2]
[343252221,1732532735549,-1000.0,0.00041095,2]
[343252222,1732532735615,-1000.0,0.00041095,2]
[343252223,1732532735675,-1000.0,0.00041095,2]
[343252224,1732532735738,-1000.0,0.00041095,2]
[343252225,1732532735802,-1000.0,0.00041095,2]
[343252226,1732532735869,-1000.0,0.00041095,2]
[343252227,1732532735934,-1000.0,0.00041095,2]
[343252228,1732532736009,-1000.0,0.00041095,2]
[343252229,1732532736081,-1000.0,0.00041095,2]
[343252230,1732532736156,-1000.0,0.00041095,2]
[343252231,1732532736231,-1000.0,0.00041095,2]
[343252232,1732532736301,-1000.0,0.00041095,2]
[343252233,1732532736367,-1000.0,0.00041095,2]
[343252234,1732532736431,-1000.0,0.00041095,2]
[343252235,1732532736499,-1000.0,0.00041095,2]
[343252236,1732532736571,-1000.0,0.00041095,2]
[343252237,1732532736637,-1000.0,0.00041095,2]
[343252238,1732532736702,-1000.0,0.00041095,2]
[343252239,1732532736765,-1000.0,0.00041095,2]
[343252240,1732532736828,-1000.0,0.00041095,2]
[343252241,1732532736891,-205.4001331,0.00041095,2]
[343252242,1732532736952,-833.792001,0.00041095,14]
[343252243,1732532737014,-833.792001,0.00041095,14]
[343252244,1732532737079,-159.109585,0.00041095,14]
[343252245,1732532737373,-159.109585,0.00041095,14]
[343252246,1732532737446,-4585.2,0.00041095,21]
[343252247,1732532737511,-1334.73,0.00041095,120]
[343252248,1732532737574,-851.7,0.00041095,21]
[343252249,1732532737634,-482.15049894,0.00041095,120]
[343252250,1732532737698,-5410.63,0.00041095,21]
[343252251,1732532737760,-500.0,0.00041095,21]
[343252252,1732532737823,-1973.4,0.00041095,21]
[343252253,1732532737885,-4420.66,0.00041095,21]
[343252254,1732532737946,-5984.38,0.00041095,21]
[343252255,1732532738011,-6051.6,0.00041095,21]
[343252256,1732532738078,-1300.59,0.00041095,21]
[343252257,1732532738143,-500.0,0.00041095,21]
[343252258,1732532738213,-1357.91,0.00041095,21]
[343252259,1732532738282,-3894.59,0.00041095,21]
[343252260,1732532738345,-14627.41,0.00041095,21]
[343252261,1732532738409,-2412.24,0.00041095,21]
[343252262,1732532738472,-2936.98,0.00041095,21]
[343252263,1732532738537,-600.33,0.00041095,21]
[343252264,1732532738605,-500.0,0.00041095,21]
[343252265,1732532738673,-198.44587339,0.00041096,2]
[343252266,1732532738740,-177.13,0.00041096,2]
[343252267,1732532738807,-1000.0,0.00041096,5]
[343252268,1732532738873,-1000.0,0.00041096,5]
[343252269,1732532738939,-1000.0,0.00041096,5]
[343252270,1732532739004,-1000.0,0.00041096,5]
[343252271,1732532739067,-1000.0,0.00041096,5]
[343252272,1732532739131,-1000.0,0.00041096,5]
[343252273,1732532739198,-1000.0,0.00041096,5]
[343252274,1732532739260,-1000.0,0.00041096,5]
[343252275,1732532739322,-1000.0,0.00041096,5]
[343252276,1732532739382,-1000.0,0.00041096,5]
[343252277,1732532739442,-1000.0,0.00041096,5]
[343252278,1732532739504,-1000.0,0.00041096,5]
[343252279,1732532739567,-1000.0,0.00041096,5]
[343252280,1732532739629,-1000.0,0.00041096,5]
[343252281,1732532739701,-1000.0,0.00041096,5]
[343252282,1732532739766,-1000.0,0.00041096,5]
[343252283,1732532739832,-1000.0,0.00041096,5]
[343252284,1732532739896,-1000.0,0.00041096,5]
[343252285,1732532739962,-1000.0,0.00041096,5]
[343252286,1732532740033,-1000.0,0.00041096,5]
[343252287,1732532740104,-1000.0,0.00041096,5]
[343252288,1732532740173,-1000.0,0.00041096,5]
[343252289,1732532740251,-1000.0,0.00041096,5]
[343252290,1732532740328,-1000.0,0.00041096,5]
[343252291,1732532740403,-1000.0,0.00041096,5]
[343252292,1732532740473,-1000.0,0.00041096,5]
[343252293,1732532740539,-1000.0,0.00041096,5]
[343252294,1732532740602,-1000.0,0.00041096,5]
[343252295,1732532740661,-1000.0,0.00041096,5]
[343252296,1732532740721,-1000.0,0.00041096,5]
[343252297,1732532740782,-1000.0,0.00041096,5]
[343252298,1732532740842,-1000.0,0.00041096,5]
[343252299,1732532740902,-1000.0,0.00041096,5]
[343252300,1732532740961,-580.0,0.00041096,5]
[343252301,1732532741020,-248.0,0.00041096,2]
[343252302,1732532741083,-1000.0,0.00041096,5]
[343252303,1732532741152,-1000.0,0.00041096,5]
[343252304,1732532741219,-1000.0,0.00041096,5]
[343252305,1732532741284,-1000.0,0.00041096,5]
[343252306,1732532741348,-1000.0,0.00041096,5]
[343252307,1732532741415,-1000.0,0.00041096,5]
[343252308,1732532741481,-1000.0,0.00041096,5]
[343252309,1732532741549,-1000.0,0.00041096,5]
[343252310,1732532741612,-1000.0,0.00041096,5]
[343252311,1732532741672,-1000.0,0.00041096,5]
[343252312,1732532741734,-151.0,0.00041096,14]
[343252313,1732532741800,-151.0,0.00041096,14]
[343252314,1732532741872,-151.0,0.00041096,14]
[343252315,1732532741940,-151.0,0.00041096,14]
[343252316,1732532742009,-151.0,0.00041096,14]
[343252317,1732532742074,-158.484675,0.00041096,14]
[343252318,1732532742144,-151.31,0.00041096,2]
[343252319,1732532742210,-151.0,0.00041096,14]
[343252320,1732532742271,-151.0,0.00041096,14]
[343252321,1732532742336,-151.0,0.00041096,14]
[343252322,1732532742398,-152.225277,0.00041096,14]
[343252323,1732532742455,-152.225277,0.00041096,14]
[343252324,1732532742514,-151.0,0.00041096,14]
[343252325,1732532742572,-151.0,0.00041096,14]
[343252326,1732532742628,-151.0,0.00041096,14]
[343252327,1732532742688,-151.0,0.00041096,14]
[343252328,1732532742746,-151.0,0.00041096,14]
[343252329,1732532742804,-151.0,0.00041096,14]
[343252330,1732532742868,-398.458523,0.00041096,14]
[343252331,1732532742930,-398.458519,0.00041096,14]
[343252332,1732532742997,-594.537871,0.00041096,7]
[343252333,1732532743205,-594.537867,0.00041096,7]
[343252334,1732532743268,-171.53,0.00041167,2]
[343252335,1732532743331,-857.92,0.00041246,2]
[343252336,1732532743392,-500.0,0.00041246,21]
[343252337,1732532743454,-1065.09,0.00041246,21]
[343252338,1732532743511,-567.62644645,0.00041246,21]
[343252339,1732532743575,-500.0,0.00041246,21]
[343252340,1732532743641,-500.0,0.00041246,21]
[343252341,1732532743707,-500.0,0.00041246,21]
[343252342,1732532743772,-500.0,0.00041246,21]
[343252343,1732532743833,-500.0,0.00041246,21]
[343252344,1732532743892,-1721.9,0.00041246,21]
[343252345,1732532743959,-776.3,0.00041246,21]